fUST/lending_fUST_20241211
["ID","MTS","AMOUNT","RATE_DAILY","PERIOD"]
[344984579,1733904646224,-500.0,0.00029863,7]
[344984582,1733904646233,-500.0,0.00029863,7]
[344984584,1733904646242,-500.0,0.00029863,7]
[344984586,1733904646251,-500.0,0.00029863,7]
[344984588,1733904646260,-500.0,0.00029863,7]
[344984590,1733904646269,-500.0,0.00029863,7]
[344984592,1733904646278,-500.0,0.00029998,7]
[344984593,1733904646287,-500.0,0.00029998,7]
[344984595,1733904646295,-500.0,0.00030424,7]
[344984597,1733904646304,-500.0,0.00030424,7]
[344984599,1733904646314,-394.76785569,0.00030424,2]
[344984602,1733904646326,-500.0,0.00030425,7]
[344984605,1733904646336,-500.0,0.00030425,7]
[344984608,1733904646346,-500.0,0.00030426,7]
[344984610,1733904646356,-500.0,0.00030426,7]
[344984612,1733904646365,-500.0,0.00030426,7]
[344984614,1733904646375,-500.0,0.00030426,7]
[344984616,1733904646384,-500.0,0.00030426,7]
[344984618,1733904646393,-2885082.77971098,0.0003043,10]
[344984630,1733904646628,-1057.76399451,0.0003043,10]
[344984637,1733904731397,616.65,0.00026,60]
[344986620,1733905051984,244.3309499,0.00013131,7]
[344986621,1733905054706,534.4739529,0.00013131,7]
[344986622,1733905057666,381.76710922,0.00013131,7]
[344986624,1733905060209,377.61760421,0.00013131,7]
[344986627,1733905062870,449.54476691,0.00013131,7]
[344986632,1733905065966,251.74506947,0.00013131,7]
[344986633,1733905068919,366.49642484,0.00013131,7]
[344987293,1733905498360,331.0,0.00026,60]
[344987322,1733905542371,-159.0,0.00022,2]
[344987323,1733905542393,-2513.23801764,0.00023,2]
[344987324,1733905542414,-202.0,0.00023,2]
[344987325,1733905542434,-159.0,0.00023014,2]
[344987327,1733905542454,-172.828025,0.00026381,2]
[344987328,1733905542475,-200.0,0.00026754,2]
[344987329,1733905542497,-355.989155,0.00026796,2]
[344987330,1733905542518,-318.4640012,0.00026822,2]
[344987331,1733905542539,-300.0,0.00026848,2]
[344987332,1733905542562,-300.0,0.00026848,2]
[344987333,1733905542588,-449.56111561,0.00026849,2]
[344987363,1733905575807,160.356892,0.00013973,2]
[344988106,1733905650108,-160.356892,0.00022174,2]
[344988107,1733905650133,-50.43888439,0.00026849,2]
[344988108,1733905650157,-75.32116783,0.0002693,2]
[344988168,1733905711440,950.70064061,0.0002,2]
[344988169,1733905721658,32270.23688472,0.0001999,2]
[344988177,1733905749169,-300.0,0.00020376,2]
[344988178,1733905749195,-300.0,0.00020376,2]
[344988179,1733905749231,-25956.61028495,0.00020377,2]
[344988180,1733905749255,-420.0,0.00022179,2]
[344988181,1733905749279,-420.0,0.00022414,2]
[344988182,1733905749304,-587.0,0.00024141,2]
[344988183,1733905749328,-587.0,0.00024655,2]
[344988184,1733905749350,-1950.617797,0.00026,30]
[344988185,1733905749372,-823.0,0.00026277,2]
[344988186,1733905749396,-24900.0,0.00026378,2]
[344988187,1733905749419,-250.0,0.00026816,2]
[344988210,1733905823815,186.162628,0.00026668,2]
[344988267,1733905832385,-257.0,0.0002693,2]
[344988268,1733905832396,-8777.3446823,0.00026931,2]
[344988270,1733905832406,-257.63274564,0.00027192,2]
[344988272,1733905832416,-968.66397613,0.000275,2]
[344988274,1733905832428,-5284.09733366,0.000275,2]
[344988275,1733905832437,-494.64453762,0.0002799,2]
[344988276,1733905832447,-5708.60229823,0.00027994,2]
[344988277,1733905832459,-1560.92732932,0.00027994,2]
[344988278,1733905832470,-1352.145,0.00027994,2]
[344988279,1733905832501,-1086.0561536,0.00027994,2]
[344988281,1733905832510,-738.77924782,0.00028399,2]
[344988282,1733905832524,-2565.332533,0.00028407,2]
[344988289,1733905838256,-7142.39824815,0.00028407,2]
[344988290,1733905838266,-1150.21784111,0.00028512,2]
[344988292,1733905838436,-570.00892383,0.00028512,2]
[344988293,1733905838448,-7987.50401621,0.00028512,2]
[344988294,1733905838458,-169.792459,0.00028543,2]
[344988295,1733905838468,-160.13163728,0.00028552,2]
[344988296,1733905838477,-738.7792478,0.00028702,2]
[344988297,1733905838487,-9707.73078115,0.00028788,2]
[344988299,1733905838496,-571.40167407,0.00028878,2]
[344988301,1733905838505,-389.036,0.0002891,2]
[344988303,1733905838514,-159.0,0.00028997,2]
[344988305,1733905838525,-187.27,0.00029,21]
[344988307,1733905838534,-738.7792478,0.00029005,2]
[344988309,1733905838544,-9707.73078115,0.00029271,2]
[344988311,1733905838553,-738.7792478,0.00029308,2]
[344988313,1733905838562,-9707.73078115,0.00029429,2]
[344988315,1733905838572,-738.7792478,0.00029612,2]
[344988317,1733905838581,-18930.72775462,0.000298,120]
[344988319,1733905838591,-9707.73078115,0.00029841,2]
[344988321,1733905838600,-500.0,0.00029862,7]
[344988323,1733905838609,-500.0,0.00029862,2]
[344988324,1733905838619,-500.0,0.00029862,2]
[344988325,1733905838627,-500.0,0.00029862,2]
[344988326,1733905838637,-500.0,0.00029862,2]
[344988327,1733905838646,-500.0,0.00029862,2]
[344988328,1733905838655,-517.76847165,0.00029862,2]
[344988329,1733905838664,-500.0,0.00029862,2]
[344988330,1733905838674,-500.0,0.00029862,2]
[344988331,1733905838683,-491.80630381,0.00029862,2]
[344988332,1733905838692,-500.0,0.00029863,7]
[344988333,1733905838702,-500.0,0.00029863,7]
[344988334,1733905838711,-447.34602601,0.00029863,7]
[344988335,1733905838723,-52.6801115,0.00029863,7]
[344988336,1733905838732,-500.0,0.00029863,7]
[344988337,1733905838741,-500.0,0.00029863,7]
[344988338,1733905838751,-500.0,0.00029863,7]
[344988339,1733905838760,-565.3,0.00029863,7]
[344988340,1733905838770,-527.13197481,0.00029863,7]
[344988341,1733905838780,-500.0,0.00029863,7]
[344988342,1733905838790,-500.0,0.00029863,7]
[344988343,1733905838799,-500.0,0.00029863,7]
[344988344,1733905838808,-204.09,0.00029863,7]
[344988345,1733905838818,-500.0,0.00029863,7]
[344988346,1733905838828,-500.0,0.00029863,7]
[344988347,1733905838837,-500.0,0.00029863,7]
[344988348,1733905838847,-615.35993336,0.00029863,7]
[344988349,1733905838857,-500.0,0.00029863,7]
[344988350,1733905838867,-500.0,0.00029863,7]
[344988351,1733905838876,-500.0,0.00029863,7]
[344988352,1733905838885,-500.0,0.00029863,7]
[344988353,1733905838895,-347.34,0.00029863,7]
[344988354,1733905838904,-500.0,0.00029863,7]
[344988355,1733905838914,-507.66193599,0.00029863,7]
[344988356,1733905838924,-518.5769168,0.00029863,7]
[344988357,1733905838933,-500.0,0.00029863,7]
[344988358,1733905838943,-500.0,0.00029863,7]
[344988359,1733905838952,-500.0,0.00029863,7]
[344988360,1733905838961,-500.0,0.00029863,7]
[344988361,1733905838971,-500.0,0.00029863,7]
[344988362,1733905838981,-583.71322939,0.00029863,7]
[344988363,1733905838990,-500.0,0.00029863,7]
[344988364,1733905839000,-503.00097507,0.00029863,7]
[344988365,1733905839010,-500.0,0.00029863,7]
[344988366,1733905839019,-500.0,0.00029863,7]
[344988367,1733905839031,-500.0,0.00029863,7]
[344988368,1733905839040,-500.0,0.00029863,7]
[344988369,1733905839049,-500.0,0.00029863,7]
[344988370,1733905839058,-214.11785546,0.00029863,7]
[344988371,1733905839068,-501.2967962,0.00029863,7]
[344988372,1733905839077,-500.0,0.00029863,7]
[344988373,1733905839086,-506.71060448,0.00029863,7]
[344988374,1733905839096,-511.27061315,0.00029863,7]
[344988375,1733905839105,-501.11218418,0.00029863,7]
[344988376,1733905839115,-500.0,0.00029863,7]
[344988377,1733905839124,-500.0,0.00029863,7]
[344988378,1733905839135,-500.0,0.00029863,7]
[344988379,1733905839146,-646.86,0.00029863,7]
[344988380,1733905839155,-500.0,0.00029863,7]
[344988381,1733905839165,-500.0,0.00029863,7]
[344988382,1733905839174,-500.0,0.00029863,7]
[344988383,1733905839185,-500.0,0.00029863,7]
[344988384,1733905839194,-331.14,0.00029863,7]
[344988385,1733905839204,-500.0,0.00029863,7]
[344988386,1733905839214,-606.46,0.00029863,7]
[344988387,1733905839223,-555.86,0.00029863,7]
[344988388,1733905839233,-410.49067948,0.00029863,7]
[344988389,1733905839242,-500.0,0.00029863,7]
[344988390,1733905839251,-500.0,0.00029863,7]
[344988391,1733905839260,-500.0,0.00029863,7]
[344988392,1733905839270,-500.0,0.00029863,7]
[344988393,1733905839283,-411.79958113,0.00029863,7]
[344988394,1733905839292,-500.0,0.00029863,2]
[344988395,1733905839302,-500.0,0.00029863,2]
[344988396,1733905839311,-500.0,0.00029863,2]
[344988397,1733905839321,-809.01,0.00029863,7]
[344988398,1733905839330,-809.01,0.00029863,7]
[344988399,1733905839462,-500.0,0.00029863,7]
[344988400,1733905839472,-809.01,0.00029863,7]
[344988401,1733905839482,-504.58229136,0.00029863,7]
[344988402,1733905839491,-507.23129386,0.00029863,7]
[344988403,1733905839500,-3611.11,0.00029863,7]
[344988404,1733905839510,-3611.11,0.00029863,7]
[344988405,1733905839519,-3611.11,0.00029863,7]
[344988406,1733905839535,-415.4241514,0.00029863,7]
[344988407,1733905839548,-3611.11,0.00029863,7]
[344988408,1733905839557,-3611.11,0.00029863,7]
[344988409,1733905839566,-3611.11,0.00029863,7]
[344988410,1733905839576,-500.0,0.00029863,7]
[344988411,1733905839586,-643.95,0.00029863,7]
[344988412,1733905839595,-643.95,0.00029863,7]
[344988413,1733905839605,-643.95,0.00029863,7]
[344988414,1733905839614,-643.95,0.00029863,7]
[344988415,1733905839623,-643.95,0.00029863,7]
[344988416,1733905839632,-643.95,0.00029863,7]
[344988417,1733905839642,-500.0,0.00029863,7]
[344988418,1733905839651,-506.24,0.00029863,7]
[344988419,1733905839660,-500.0,0.00029863,7]
[344988420,1733905839669,-506.45000821,0.00029863,7]
[344988421,1733905839679,-500.0,0.00029863,7]
[344988422,1733905839688,-500.0,0.00029863,7]
[344988423,1733905839698,-500.0,0.00029863,7]
[344988424,1733905839707,-500.0,0.00029863,7]
[344988425,1733905839715,-625.78500023,0.00029863,7]
[344988426,1733905839725,-502.74755855,0.00029863,7]
[344988427,1733905839734,-500.0,0.00029863,7]
[344988428,1733905839743,-500.0,0.00029863,7]
[344988429,1733905839752,-500.0,0.00029863,7]
[344988430,1733905839761,-500.0,0.00029863,7]
[344988431,1733905839770,-500.0,0.00029863,7]
[344988432,1733905839782,-504.85407999,0.00029863,7]
[344988433,1733905839791,-500.0,0.00029863,7]
[344988434,1733905839800,-500.0,0.00029863,7]
[344988435,1733905839809,-228.48830999,0.00029863,7]
[344988436,1733905839819,-500.0,0.00029863,7]
[344988437,1733905839828,-502.91968247,0.00029863,7]
[344988438,1733905839837,-500.0,0.00029863,7]
[344988439,1733905839847,-500.0,0.00029863,7]
[344988440,1733905839856,-500.0,0.00029863,7]
[344988441,1733905839865,-3611.11,0.00029873,7]
[344988442,1733905839875,-643.95,0.00029873,7]
[344988443,1733905839885,-500.0,0.00029874,2]
[344988444,1733905839895,-809.01,0.00029874,7]
[344988445,1733905839905,-594.76,0.00029874,7]
[344988446,1733905839915,-533.0,0.00029875,2]
[344988447,1733905839925,-2371.0,0.00029875,2]
[344988448,1733905839934,-2163.0,0.00029875,2]
[344988449,1733905839944,-4501.842,0.00029875,2]
[344988450,1733905839955,-9707.73078115,0.0002988,2]
[344988452,1733905839964,-738.7792478,0.00029915,2]
[344988453,1733905839973,-3611.11,0.00029985,7]
[344988454,1733905839983,-643.95,0.00029985,7]
[344988455,1733905839992,-170.6895,0.0003,2]
[344988456,1733905840001,-1000.0,0.0003,2]
[344988457,1733905840011,-581.09,0.0003,2]
[344988458,1733905840020,-26334.54955936,0.0003,2]
[344988459,1733905840031,-300.0,0.0003,14]
[344988460,1733905840041,-209.0,0.0003,2]
[344988461,1733905840051,-809.01,0.00030062,7]
[344988462,1733905840060,-3611.11,0.00030099,7]
[344988463,1733905840070,-3611.11,0.00030099,7]
[344988464,1733905840079,-643.95,0.00030099,7]
[344988465,1733905840089,-643.95,0.00030099,7]
[344988466,1733905840099,-39859.000003,0.000301,7]
[344988467,1733905840109,-500.0,0.00030143,7]
[344988468,1733905840118,-3611.11,0.00030194,7]
[344988469,1733905840127,-643.95,0.00030194,7]
[344988470,1733905840140,-738.7792478,0.00030218,2]
[344988471,1733905840149,-160.356892,0.00030374,2]
[344988472,1733905840159,-9707.73078117,0.00030382,2]
[344988473,1733905840168,-151.0,0.000304,16]
[344988474,1733905840177,-151.0,0.000304,16]
[344988475,1733905840186,-151.0,0.000304,12]
[344988476,1733905840196,-151.0,0.000304,16]
[344988477,1733905840205,-809.01,0.00030425,7]
[344988478,1733905840214,-500.0,0.00030428,7]
[344988479,1733905840223,-462.47359154,0.00030429,2]
[344988480,1733905840232,-151.0,0.0003043,7]
[344988481,1733905840242,-151.998742,0.0003043,7]
[344988482,1733905840251,-150.14,0.0003043,2]
[344988483,1733905840260,-150.15,0.0003043,2]
[344988484,1733905840269,-151.692632,0.0003043,2]
[344988485,1733905840282,-500.0,0.0003043,2]
[344988486,1733905840291,-500.0,0.0003043,2]
[344988487,1733905840301,-500.0,0.00030433,2]
[344988488,1733905840311,-500.0,0.00030434,2]
[344988489,1733905840320,-500.0,0.00030437,2]
[344988490,1733905840330,-500.0,0.00030448,2]
[344988491,1733905840339,-159.12838708,0.00030449,2]
[344988492,1733905840348,-283.88331629,0.00030449,2]
[344988494,1733905840358,-500.0,0.0003045,2]
[344988496,1733905840367,-500.0,0.00030488,2]
[344988498,1733905840378,-500.0,0.00030495,2]
[344988500,1733905840387,-3611.11,0.00030498,7]
[344988501,1733905840397,-643.95,0.00030498,7]
[344988503,1733905840408,-443.37679354,0.00030499,7]
[344988504,1733905840418,-500.0,0.00030499,7]
[344988505,1733905840427,-500.0,0.00030499,7]
[344988507,1733905840438,-500.0,0.00030499,7]
[344988508,1733905840447,-809.01,0.00030499,7]
[344988509,1733905840455,-809.01,0.00030499,7]
[344988510,1733905840465,-809.01,0.00030499,7]
[344988511,1733905840475,-3611.11,0.00030499,7]
[344988512,1733905840484,-3611.11,0.00030499,7]
[344988513,1733905840494,-3611.11,0.00030499,7]
[344988514,1733905840503,-643.95,0.00030499,7]
[344988515,1733905840513,-643.95,0.00030499,7]
[344988516,1733905840522,-643.95,0.00030499,7]
[344988517,1733905840533,-40571.67281026,0.000305,15]
[344988518,1733905840542,-12764.17505678,0.000305,2]
[344988519,1733905840552,-955.32196936,0.000305,7]
[344988520,1733905840561,-500.0,0.00030511,2]
[344988521,1733905840570,-1608.5911617,0.00030521,2]
[344988522,1733905840580,-738.7792478,0.00030521,2]
[344988523,1733905840589,-500.0,0.00030524,2]
[344988524,1733905840598,-809.01,0.0003062,7]
[344988525,1733905840607,-809.01,0.0003062,7]
[344988526,1733905840616,-3611.11,0.0003062,7]
[344988527,1733905840625,-3611.11,0.0003062,7]
[344988528,1733905840635,-3611.11,0.0003062,7]
[344988529,1733905840644,-3611.11,0.0003062,7]
[344988530,1733905840654,-3611.11,0.0003062,7]
[344988531,1733905840663,-3611.11,0.0003062,7]
[344988532,1733905840673,-3611.11,0.0003062,7]
[344988533,1733905840683,-3611.11,0.0003062,7]
[344988534,1733905840693,-3611.11,0.0003062,7]
[344988535,1733905840702,-643.95,0.0003062,7]
[344988536,1733905840712,-643.95,0.0003062,7]
[344988537,1733905840721,-643.95,0.0003062,7]
[344988538,1733905840730,-643.95,0.0003062,7]
[344988539,1733905840740,-643.95,0.0003062,7]
[344988540,1733905840749,-643.95,0.0003062,7]
[344988541,1733905840759,-643.95,0.0003062,7]
[344988542,1733905840768,-643.95,0.0003062,7]
[344988543,1733905840779,-644.18000001,0.0003062,7]
[344988544,1733905840789,-151.0,0.00030621,7]
[344988545,1733905840798,-151.0,0.00030621,7]
[344988546,1733905840808,-151.0,0.00030621,7]
[344988547,1733905840817,-151.0,0.00030621,7]
[344988548,1733905840827,-151.0,0.00030621,7]
[344988549,1733905840837,-151.0,0.00030621,7]
[344988550,1733905840847,-151.0,0.00030621,7]
[344988551,1733905840857,-151.0,0.00030621,7]
[344988552,1733905840867,-151.0,0.00030621,7]
[344988553,1733905840877,-151.0,0.00030621,7]
[344988554,1733905840886,-151.0,0.00030621,7]
[344988555,1733905840896,-151.0,0.00030621,7]
[344988556,1733905840906,-151.0,0.00030621,7]
[344988557,1733905840916,-151.0,0.00030621,7]
[344988558,1733905840926,-151.0,0.00030621,7]
[344988559,1733905840936,-151.0,0.00030621,7]
[344988560,1733905840946,-151.0,0.00030621,7]
[344988561,1733905840956,-151.0,0.00030621,7]
[344988562,1733905840966,-151.0,0.00030621,7]
[344988563,1733905840976,-151.0,0.00030621,7]
[344988564,1733905840986,-151.0,0.00030621,7]
[344988565,1733905840996,-151.0,0.00030621,7]
[344988566,1733905841006,-151.0,0.00030621,7]
[344988567,1733905841016,-151.0,0.00030621,7]
[344988568,1733905841027,-151.0,0.00030621,7]
[344988569,1733905841037,-278.784195,0.00030621,7]
[344988570,1733905841047,-151.0,0.00030621,7]
[344988571,1733905841057,-151.0,0.00030621,7]
[344988572,1733905841067,-165.395047,0.00030621,7]
[344988573,1733905841076,-151.0,0.00030621,7]
[344988574,1733905841086,-151.0,0.00030621,7]
[344988575,1733905841095,-151.0,0.00030621,7]
[344988576,1733905841105,-151.0,0.00030621,7]
[344988577,1733905841115,-151.0,0.00030621,7]
[344988578,1733905841125,-151.0,0.00030621,7]
[344988579,1733905841137,-151.0,0.00030621,7]
[344988580,1733905841146,-151.0,0.00030621,7]
[344988581,1733905841156,-151.0,0.00030621,7]
[344988582,1733905841165,-151.0,0.00030621,7]
[344988583,1733905841174,-151.0,0.00030621,7]
[344988584,1733905841183,-151.0,0.00030621,7]
[344988585,1733905841193,-201.684784,0.00030621,7]
[344988586,1733905841202,-151.0,0.00030621,7]
[344988587,1733905841211,-151.0,0.00030621,7]
[344988588,1733905841221,-151.0,0.00030621,7]
[344988589,1733905841230,-151.0,0.00030621,7]
[344988590,1733905841240,-151.0,0.00030621,7]
[344988591,1733905841249,-151.0,0.00030621,7]
[344988592,1733905841258,-151.0,0.00030621,7]
[344988593,1733905841267,-151.0,0.00030621,7]
[344988594,1733905841277,-151.0,0.00030621,7]
[344988595,1733905841287,-151.0,0.00030621,7]
[344988596,1733905841296,-151.0,0.00030621,7]
[344988597,1733905841305,-151.0,0.00030621,7]
[344988598,1733905841314,-194.387552,0.00030621,7]
[344988599,1733905841323,-151.0,0.00030621,7]
[344988600,1733905841332,-151.0,0.00030621,7]
[344988601,1733905841342,-151.0,0.00030621,7]
[344988602,1733905841351,-151.0,0.00030621,7]
[344988603,1733905841360,-151.0,0.00030621,7]
[344988604,1733905841370,-278.03818,0.00030621,7]
[344988605,1733905841379,-809.01,0.00030621,7]
[344988606,1733905841388,-809.01,0.00030621,7]
[344988607,1733905841397,-809.01,0.00030621,7]
[344988608,1733905841407,-809.01,0.00030621,7]
[344988609,1733905841416,-809.01,0.00030621,7]
[344988610,1733905841425,-809.01,0.00030621,7]
[344988611,1733905841434,-809.01,0.00030621,7]
[344988612,1733905841444,-809.01,0.00030621,7]
[344988613,1733905841453,-809.01,0.00030621,7]
[344988614,1733905841462,-809.01,0.00030621,7]
[344988615,1733905841472,-809.01,0.00030621,7]
[344988616,1733905841481,-809.01,0.00030621,7]
[344988617,1733905841491,-809.11,0.00030621,7]
[344988618,1733905841500,-278.171791,0.00030621,7]
[344988619,1733905841509,-159.894083,0.00030621,7]
[344988620,1733905841518,-151.0,0.00030621,7]
[344988621,1733905841529,-151.0,0.00030621,7]
[344988622,1733905841538,-160.272397,0.00030621,7]
[344988623,1733905841547,-151.0,0.00030621,7]
[344988624,1733905841557,-151.0,0.00030621,7]
[344988625,1733905841566,-151.0,0.00030621,7]
[344988626,1733905841575,-151.0,0.00030621,7]
[344988627,1733905841585,-151.0,0.00030621,7]
[344988628,1733905841594,-152.172821,0.00030621,7]
[344988629,1733905841603,-158.943219,0.00030621,7]
[344988630,1733905841612,-151.0,0.00030621,7]
[344988631,1733905841622,-151.0,0.00030621,7]
[344988632,1733905841631,-151.0,0.00030621,7]
[344988633,1733905841640,-151.0,0.00030621,7]
[344988634,1733905841649,-151.0,0.00030621,7]
[344988635,1733905841658,-151.0,0.00030621,7]
[344988636,1733905841668,-151.0,0.00030621,7]
[344988637,1733905841677,-151.0,0.00030621,7]
[344988638,1733905841686,-151.0,0.00030621,7]
[344988639,1733905841695,-151.0,0.00030621,7]
[344988640,1733905841704,-296.920712,0.00030621,7]
[344988641,1733905841713,-225.423622,0.00030621,7]
[344988642,1733905841722,-151.0,0.00030621,7]
[344988643,1733905841732,-151.0,0.00030621,7]
[344988644,1733905841741,-151.0,0.00030621,7]
[344988645,1733905841750,-151.0,0.00030621,7]
[344988646,1733905841759,-151.0,0.00030621,7]
[344988647,1733905841768,-151.0,0.00030621,7]
[344988648,1733905841779,-151.0,0.00030621,7]
[344988649,1733905841789,-151.0,0.00030621,7]
[344988650,1733905841798,-151.0,0.00030621,7]
[344988651,1733905841807,-151.0,0.00030621,7]
[344988652,1733905841817,-151.0,0.00030621,7]
[344988653,1733905841827,-151.0,0.00030621,7]
[344988654,1733905841836,-151.0,0.00030621,7]
[344988655,1733905841846,-151.0,0.00030621,7]
[344988656,1733905841855,-151.0,0.00030621,7]
[344988657,1733905841865,-151.0,0.00030621,7]
[344988658,1733905841874,-151.0,0.00030621,7]
[344988659,1733905841884,-151.0,0.00030621,7]
[344988660,1733905841893,-151.0,0.00030621,7]
[344988661,1733905841903,-151.0,0.00030621,7]
[344988662,1733905841912,-217.672425,0.00030621,7]
[344988663,1733905841921,-151.0,0.00030621,7]
[344988664,1733905841931,-1000.0,0.00030621,28]
[344988665,1733905841941,-1000.0,0.00030621,28]
[344988666,1733905841950,-1000.0,0.00030621,28]
[344988667,1733905841959,-1000.0,0.00030621,28]
[344988668,1733905841969,-1000.0,0.00030621,28]
[344988669,1733905841979,-1000.0,0.00030621,28]
[344988670,1733905841989,-1000.0,0.00030621,28]
[344988671,1733905841998,-999.78,0.00030621,28]
[344988672,1733905842007,-288.016654,0.00030621,7]
[344988673,1733905842017,-34726.33101942,0.00030621,2]
[344988674,1733905842029,-376040.12826396,0.00030621,10]
[344988699,1733905846300,-500.0,0.00029863,7]
[344988700,1733905846310,-500.0,0.00029863,7]
[344988701,1733905846319,-76.23386266,0.00029863,7]
[344988702,1733905846330,-539.83887764,0.00029863,7]
[344988703,1733905846339,-500.0,0.00029863,7]
[344988704,1733905846349,-542.02,0.00029863,7]
[344988705,1733905846359,-500.0,0.00029863,7]
[344988706,1733905846368,-500.0,0.00029863,7]
[344988707,1733905846378,-500.0,0.00029863,7]
[344988708,1733905846387,-151.0,0.00030621,7]
[344988709,1733905846398,-151.0,0.00030621,7]
[344988710,1733905846408,-151.0,0.00030621,7]
[344988711,1733905846418,-151.0,0.00030621,7]
[344988712,1733905846427,-151.0,0.00030621,7]
[344988713,1733905846436,-198.948923,0.00030621,7]
[344988714,1733905846445,-26387.22443696,0.00030621,10]
[344988715,1733905846457,-7852.93744001,0.00030621,10]
[344988730,1733906483364,160.881511,0.00013973,2]
[344988731,1733906846209,-160.881511,0.00021661,2]
[344988732,1733906846231,-200.0,0.00027365,2]
[344988733,1733906846252,-300.0,0.00028266,2]
[344988734,1733906846273,-2960.67517106,0.00028267,2]
[344988735,1733906854103,-834.89080341,0.00028267,2]
[344988789,1733907032623,-172.828025,0.00027263,2]
[344988791,1733907032634,-1524.42706071,0.00027658,2]
[344988797,1733907032697,-428.15904529,0.00027658,2]
[344988799,1733907032708,-300.0,0.00028266,2]
[344988801,1733907032719,-21104.43402553,0.00028267,2]
[344988803,1733907032730,-500.0,0.00028498,7]
[344988805,1733907032741,-177.994577,0.00028611,2]
[344988807,1733907032751,-1000.13383267,0.00028998,2]
[344988809,1733907032762,-729.28543194,0.00028999,2]
[344988810,1733907032773,-374.47091059,0.00028999,2]
[344988812,1733907032783,-500.0,0.00028999,2]
[344988814,1733907032794,-500.0,0.00028999,2]
[344988816,1733907032805,-506.26278934,0.00028999,2]
[344988818,1733907032816,-500.0,0.00028999,2]
[344988821,1733907032826,-412.41361356,0.00028999,2]
[344988824,1733907032837,-500.0,0.00028999,2]
[344988827,1733907032847,-500.0,0.00028999,2]
[344988830,1733907032858,-500.0,0.00028999,2]
[344988833,1733907032869,-500.0,0.00028999,2]
[344988836,1733907032880,-500.0,0.00028999,2]
[344988839,1733907032891,-500.0,0.00028999,2]
[344988842,1733907032901,-500.0,0.00028999,2]
[344988845,1733907032913,-361.23237858,0.00028999,2]
[344988848,1733907032922,-500.0,0.00028999,2]
[344988851,1733907032932,-500.0,0.00028999,2]
[344988854,1733907032943,-500.0,0.00028999,2]
[344988857,1733907032954,-500.0,0.00028999,2]
[344988860,1733907032964,-500.0,0.00028999,2]
[344988861,1733907032978,-276.46103364,0.00028999,2]
[344988864,1733907032988,-500.0,0.00028999,2]
[344988867,1733907032999,-500.0,0.00028999,2]
[344988870,1733907033009,-500.0,0.00028999,2]
[344988873,1733907033020,-500.0,0.00028999,2]
[344988876,1733907033031,-500.0,0.00028999,2]
[344988879,1733907033043,-500.0,0.00028999,2]
[344988882,1733907033054,-260.8739647,0.00028999,2]
[344988885,1733907033065,-500.0,0.00028999,2]
[344988888,1733907033075,-500.0,0.00028999,2]
[344988891,1733907033086,-500.0,0.00028999,2]
[344988894,1733907033097,-500.0,0.00028999,2]
[344988896,1733907033108,-500.0,0.00028999,2]
[344988898,1733907033118,-500.0,0.00028999,2]